Cogmind - Beta 13 @@@ ROGUE MODE // 2024.04.07 @ 14:21:10 Player: SuperDrops Result: Destroyed by V7-7QP(b) with Great Maul Performance ------------- Evolutions (4) 2000 Regions Visited (8) 1600 Robots Destroyed (63) 315 Value Destroyed (1836) 1836 Prototype IDs (6) 120 Alien Tech Used (0) 0 Bonus (371) 371 TOTAL SCORE: 6242 Bonus ------- High Alert Combat Kills 33 Entered DSFs 500 Friendly Fire -162 Cogmind --------- Core Integrity 0/850 Matter 220/300 Energy 72/100 System Corruption 5% Temperature Cool (0) Movement Core (750) Ox14 Location -6/DSF Parts ------- > --- POWER (1) -------- (None) > --- PROPULSION (6) --- (None) > --- UTILITY (4) ------ High-capacity Storage Unit > --- WEAPON (4) ------- Heavy Hammer > --- INVENTORY (20) --- Aluminum Leg Aluminum Leg Large Storage Unit Large Storage Unit Power Shielding Tractor Beam Improved Field Recycling Unit (0) Drone Bay (2/2) Drone Bay (2/2) Drone Bay (2/2) Drone Bay (2/2) Drone Bay (2/2) Assault Rifle Advanced EMP Blaster Mining Laser Peak State ------------ > --- POWER ------------ Heavy Ion Engine > --- PROPULSION ------- Light Treads Light Treads Light Treads > --- UTILITY ---------- High-capacity Storage Unit Targeting Computer Drone Bay Drone Bay > --- WEAPON ----------- Precision Beam Rifle Cooled Pulse Rifle Enhanced Autogun Advanced EMP Blaster > --- INVENTORY -------- Aluminum Leg Aluminum Leg Wheel Wheel Large Storage Unit Large Storage Unit Power Shielding Tractor Beam Improved Field Recycling Unit Drone Bay Drone Bay Drone Bay Drone Bay Drone Bay Assault Rifle Rocket Launcher Heavy Missile Launcher Mining Laser Heavy Hammer Katana [Rating: 40] Favorites ----------- Power Ion Engine Engine Ion Engine Propulsion Light Treads Treads Light Treads Wheel Wheel Hover Unit Gravmag Array Utility High-capacity Storage Unit Device Drone Bay Storage High-capacity Storage Unit Processor Targeting Computer Protection Power Shielding Weapon Assault Rifle Energy Gun Medium Laser Energy Cannon Advanced Beam Cannon Ballistic Gun Assault Rifle Launcher Advanced EMP Blaster Special Weapon Mining Laser Impact Weapon Heavy Hammer Slashing Weapon Katana Build | -11 -10 -10 -9 -8 -8 -7 -6 -6 ------- Run | Yrd Mat Min Mat Mat Sto Fac Fac DSF Slots Evolved 8 | . . . 2 2 . 2 2 . Power . | . . . . . . . . . Propulsion 4 | . . . . . . 2 2 . Utility 2 | . . . 2 . . . . . Weapon 2 | . . . . 2 . . . . Parts Attached 71 | 6 12 12 17 1 8 3 . 12 Power 6 | 1 2 2 1 . . . . . Engine 6 | 1 2 2 1 . . . . . Core . | . . . . . . . . . Reactor . | . . . . . . . . . Propulsion 20 | 2 3 2 4 . 1 1 . 7 Treads 13 | 2 3 . 4 . 1 1 . 2 Leg . | . . . . . . . . . Wheel 4 | . . 2 . . . . . 2 Hover 3 | . . . . . . . . 3 Flight . | . . . . . . . . . Utility 12 | 1 3 1 3 . 3 1 . . Device 3 | . . . . . 2 1 . . Storage 4 | 1 2 . . . 1 . . . Processor 2 | . 1 1 . . . . . . Hackware . | . . . . . . . . . Protection 3 | . . . 3 . . . . . Artifact . | . . . . . . . . . Weapon 33 | 2 4 7 9 1 4 1 . 5 Energy Gun 6 | 1 2 1 . . 1 1 . . Energy Cannon 4 | . 1 1 1 1 . . . . Ballistic Gun 9 | 1 1 2 4 . 1 . . . Ballistic Cannon . | . . . . . . . . . Launcher 11 | . . 3 4 . 1 . . 3 Special Weapon 1 | . . . . . 1 . . . Impact Weapon 1 | . . . . . . . . 1 Slashing Weapon 1 | . . . . . . . . 1 Piercing Weapon . | . . . . . . . . . Special Melee Weapon . | . . . . . . . . . Unidentified Prototypes 6 | . . . 2 . 3 1 . . Parts Lost 36 | . 3 4 8 . 1 . . 20 Power 5 | . 1 2 1 . . . . 1 Propulsion 15 | . 1 1 3 . . . . 10 Utility 5 | . . . 2 . . . . 3 Weapon 11 | . 1 1 2 . 1 . . 6 Highest Loss Streak 13 | . 3 1 4 . 1 . . 13 To Critical Strikes . | . . . . . . . . . Average Slot Usage (%) 91 | . 95 91 85 81 93 91 80 55 Engine 10 | . 13 9 5 9 9 7 6 2 Treads 19 | . 27 5 11 18 16 22 20 8 Wheel 2 | . . 20 7 . . . . 2 Device 3 | . . . . . 10 15 13 4 Storage 12 | . 14 14 11 9 12 7 6 6 Processor 10 | . 10 13 11 9 9 7 6 5 Protection 2 | . . . 17 9 3 . . . Energy Gun 8 | . 13 . . . 2 11 13 10 Energy Cannon 5 | . 4 5 1 18 12 . . . Ballistic Gun 8 | . 9 9 9 . 6 7 6 3 Launcher 3 | . . 12 11 9 3 7 6 4 Special Weapon 1 | . . . . . 6 2 . . Naked Turns . | . . . . . . . . . Heaviest Build 86 | 14 50 52 56 60 86 75 75 75 Greatest Support 60 | 40 40 40 40 40 40 60 60 60 Greatest Overweight (x) 15 | . 1 2 15 1 3 1 1 14 Average Overweight (x) . | . . 1 1 1 1 1 1 2 Largest Inventory Capacity 20 | 8 20 20 20 20 20 20 20 20 Average Capacity 17 | 7 14 20 20 20 20 20 20 20 Most Carried 20 | 8 15 17 16 13 20 20 20 20 Average Carried 13 | 4 11 15 13 13 16 19 20 18 Final Capacity 20 | 8 20 20 20 20 20 20 20 20 Final Carried 20 | 6 15 16 14 13 20 20 20 15 Class Distribution -------------------- 68% | Mutant 31% | Gunner Dominant Class ---------------- Mutant | -10/Materials Mutant | -10/Mines Mutant | -9/Materials Mutant | -8/Materials Gunner | -8/Storage Gunner | -7/Factory Gunner | -6/Factory Gunner | -6/DSF Resources | -11 -10 -10 -9 -8 -8 -7 -6 -6 ----------- Run | Yrd Mat Min Mat Mat Sto Fac Fac DSF Matter Collected 1571 | 226 228 364 104 . 440 33 . 176 Remotely . | . . . . . . . . . Salvage Created 2312 | . 271 145 402 . 816 321 . 357 Parts 126 | . 17 3 32 . 41 16 . 17 Haulers Intercepted . | . . . . . . . . . Recyclers Shooed . | . . . . . . . . . Parts Field Recycled . | . . . . . . . . . Retrieved Matter . | . . . . . . . . . Parts Self-Destructed . | . . . . . . . . . Prevented . | . . . . . . . . . Kills | -11 -10 -10 -9 -8 -8 -7 -6 -6 ------- Run | Yrd Mat Min Mat Mat Sto Fac Fac DSF Combat Hostiles Destroyed 59 | . 6 20 13 . 8 6 . 6 Guns 20 | . 6 5 . . 1 4 . 4 Cannons 9 | . . 5 . . 4 . . . AOE 30 | . . 10 13 . 3 2 . 2 Classes Destroyed 15 | . 3 2 4 . 2 1 . 3 Worker 6 | . . . 2 . 4 . . . Builder 3 | . . 1 1 . 1 . . . Recycler 7 | . . . 2 . 5 . . . Operator 3 | . . . 2 . 1 . . . Drone 1 | . . . . . 1 . . . Watcher 5 | . 2 . 2 . 1 . . . Swarmer 8 | . 2 . 3 . 3 . . . Grunt 15 | . 4 . 5 . 3 3 . . Duelist 1 | . . . . . . 1 . . Sentry 7 | . . . 5 . 1 1 . . Specialist 1 | . . . . . . . . 1 Hunter 4 | . . . . . 1 1 . 2 Heavy 1 | . . . . . . . . 1 Assembled 20 | . . 20 . . . . . . Thug 1 | . . . . . . . . 1 Fireman 1 | . . . . . . . . 1 Best Kill Streak 14 | . 3 14 11 . 3 4 . 3 Combat Bots Only 14 | . 2 14 7 . 3 4 . 3 Max Kills in Single Turn 5 | . 1 2 5 . 3 2 . 1 Gunslinging . | . . . . . . . . . Exploded 4 | . . 2 4 . 1 1 . 1 Melee . | . . . . . . . . . Uniques/NPCs Destroyed . | . . . . . . . . . Combat | -11 -10 -10 -9 -8 -8 -7 -6 -6 -------- Run | Yrd Mat Min Mat Mat Sto Fac Fac DSF Hostile Shots Fired 442 | . 70 46 76 . 41 34 . 175 Missed 137 | . 26 9 27 . 17 10 . 48 Damage Taken 5315 | . 532 726 690 . 236 292 . 2839 Core 1188 | . 75 94 90 . 23 50 . 856 Absorbed by Shields . | . . . . . . . . . Redirected to Shielding 8 | . . . . . 8 . . . Core Remaining (%) 79 | 100 . 32 77 . 95 92 . . Volleys Fired 162 | . 39 40 23 . 33 9 . 18 Largest 4 | . 2 2 2 . 3 4 . 4 Hottest 236 | . 60 120 68 . 236 142 . 145 Shots Fired 306 | . 62 52 32 . 76 31 . 53 Gun 176 | . 61 13 10 . 22 25 . 45 Cannon 64 | . 1 26 1 . 36 . . . Launcher 55 | . . 13 21 . 7 6 . 8 Special 11 | . . . . . 11 . . . Kinetic 93 | . 39 10 10 . 11 9 . 14 Thermal 137 | . 2 29 1 . 58 16 . 31 Explosive 42 | . . 13 21 . . . . 8 Electromagnetic 34 | . 21 . . . 7 6 . . Robot Hit Streak 16 | . 7 9 7 . 10 9 . 16 Robot Miss Streak 5 | . 5 4 2 . 3 3 . 1 Penetration Max . | . . . . . . . . . Secondary Targets 3 | . 2 1 . . . . . . Max Gunslinging Chain 1 | . 1 1 . . . . . . Shots Hit Robots 174 | . 36 26 12 . 44 20 . 36 Core Hits 153 | . 14 42 36 . 23 14 . 24 Critical Kills . | . . . . . . . . . Critical Parts Destroyed 1 | . . . . . 1 . . . Critical Strikes 5 | . . 1 . . 2 1 . 1 Burn 3 | . . 1 . . 1 1 . . Destroy 1 | . . . . . 1 . . . Smash 1 | . . . . . . . . 1 Melee Attacks 5 | . . . . . . . . 5 Impact 5 | . . . . . . . . 5 Slashing . | . . . . . . . . . Piercing . | . . . . . . . . . Sneak Attacks . | . . . . . . . . . Combat Hostiles . | . . . . . . . . . Follow-up Attacks . | . . . . . . . . . Damage Inflicted 6211 | . 468 1202 1304 . 1115 619 . 1503 Guns 1868 | . 468 148 35 . 222 322 . 673 Cannons 742 | . . 227 . . 515 . . . Explosions 3401 | . . 803 1269 . 282 297 . 750 Melee 80 | . . . . . . . . 80 Ramming 24 | . . 24 . . . . . . Kinetic 849 | . 333 112 35 . 81 112 . 176 Thermal 1758 | . . 263 . . 752 246 . 497 Explosive 2822 | . . 803 1269 . . . . 750 Electromagnetic 678 | . 135 . . . 282 261 . . Impact 80 | . . . . . . . . 80 Slashing . | . . . . . . . . . Piercing . | . . . . . . . . . Highest Corruption 7 | . 2 7 . . . . . 5 Average Corruption 2 | . 2 5 . . . . . 5 Corruption Purged . | . . . . . . . . . Corruption Blocked . | . . . . . . . . . Effects 25 | . 12 13 . . . . . . Message Errors 8 | . 3 5 . . . . . . Matter Fused 5 | . 3 2 . . . . . . Heat Flow Errors 3 | . 1 2 . . . . . . Energy Discharges 2 | . 2 . . . . . . . Parts Fused 1 | . . 1 . . . . . . Data Loss (minor) 2 | . . 2 . . . . . . Data Loss (major) 1 | . 1 . . . . . . . Misfires 2 | . 2 . . . . . . . Weapon Failures 1 | . . 1 . . . . . . Overload Shots . | . . . . . . . . . Overflow Damage 94 | . . 35 51 . 7 . . 1 Projectiles 14 | . . 7 . . 7 . . . Explosions 80 | . . 28 51 . . . . 1 Melee . | . . . . . . . . . Knockbacks . | . . . . . . . . . Impact . | . . . . . . . . . Kinetic . | . . . . . . . . . Secondary . | . . . . . . . . . Self-Inflicted Damage 144 | . . 34 77 . 9 . . 24 Shots 6 | . . 2 2 . 1 . . 1 Rammed 2 | . . 2 . . . . . . Targets Rammed 3 | . . 2 . . 1 . . . Kicked . | . . . . . . . . . Crushed 1 | . . . . . 1 . . . Highest Temperature 531 | . 159 531 51 . 395 272 . 13 Average Temperature 118 | . 69 216 23 . 93 104 . 4 Received Heat Transfer 1866 | . 303 240 201 . 63 90 . 969 Effects 6 | . . 5 . . 1 . . . Shutdowns 1 | . . . . . 1 . . . Energy Bleed 2 | . . 2 . . . . . . Interference 1 | . . 1 . . . . . . Matter Decay 1 | . . 1 . . . . . . Short Circuit 1 | . . 1 . . . . . . Siege Activations . | . . . . . . . . . Robots Corrupted . | . . . . . . . . . Combat Hostiles . | . . . . . . . . . Parts Fried 5 | . 2 . . . . 3 . . Impact Corruptions . | . . . . . . . . . Robots Melted . | . . . . . . . . . Combat Hostiles . | . . . . . . . . . Parts Melted 6 | . . . . . 4 1 . 1 Heat Transferred 3765 | . . 666 . . 1495 568 . 1036 Parts Sabotaged . | . . . . . . . . . Parts Stolen . | . . . . . . . . . Parts Stripped . | . . . . . . . . . Power Chain Reactions 2 | . . . . . 1 1 . . Alert | -11 -10 -10 -9 -8 -8 -7 -6 -6 ------- Run | Yrd Mat Min Mat Mat Sto Fac Fac DSF Peak Influence 496 | . 129 70 496 209 191 228 111 149 Initial 209 | . . . . 209 87 63 111 81 Average 76 | . 18 44 277 209 101 131 111 100 Maximum Alert Level 2 | . . . 2 1 . 1 . . Low Security (%) 93 | 100 100 100 34 . 100 90 100 100 Level 1 2 | . . . 20 100 . 9 . . Level 2 3 | . . . 44 . . . . . Level 3 . | . . . . . . . . . Level 4 . | . . . . . . . . . Level 5 . | . . . . . . . . . High Security . | . . . . . . . . . Max Security . | . . . . . . . . . Squads Dispatched 3 | . . . 1 . 1 . . 1 Investigation . | . . . . . . . . . Extermination . | . . . . . . . . . Reinforcement 3 | . . . 1 . 1 . . 1 Assault . | . . . . . . . . . Garrison . | . . . . . . . . . Intercept . | . . . . . . . . . Searches Triggered . | . . . . . . . . . Construction Impeded . | . . . . . . . . . Haulers Reinforced . | . . . . . . . . . Active Scanning Responses . | . . . . . . . . . Cargo Convoy Interrupts . | . . . . . . . . . Stealth | -11 -10 -10 -9 -8 -8 -7 -6 -6 --------- Run | Yrd Mat Min Mat Mat Sto Fac Fac DSF Distress Signals 7 | . . . 5 . 2 . . . Communications Jammed . | . . . . . . . . . Distress Signals . | . . . . . . . . . Times Spotted 84 | . 11 19 18 . 14 6 . 16 Peak Tracking Total 9 | . 3 9 8 . 3 4 . 6 Tactical Retreats 2 | . . . . . 1 . . 1 Traps | -11 -10 -10 -9 -8 -8 -7 -6 -6 ------- Run | Yrd Mat Min Mat Mat Sto Fac Fac DSF Traps Triggered 6 | . 3 . . . 2 1 . . Indirectly 1 | . . . . . 1 . . . Trap Hack Attempts . | . . . . . . . . . Triggered . | . . . . . . . . . Disarmed 1 | . . . . . 1 . . . Reprogrammed . | . . . . . . . . . Reused . | . . . . . . . . . Traps Extracted . | . . . . . . . . . Installed . | . . . . . . . . . Triggered . | . . . . . . . . . Machines | -11 -10 -10 -9 -8 -8 -7 -6 -6 ---------- Run | Yrd Mat Min Mat Mat Sto Fac Fac DSF Machines Disabled 9 | . . . 6 . 3 . . . Max in Single Turn 2 | . . . 2 . 1 . . . Machines Repaired . | . . . . . . . . . Machines Dismantled . | . . . . . . . . . Machines Sabotaged . | . . . . . . . . . Overloaded Fab Kills . | . . . . . . . . . Hacking | -11 -10 -10 -9 -8 -8 -7 -6 -6 --------- Run | Yrd Mat Min Mat Mat Sto Fac Fac DSF Machines Accessed 7 | . 2 . . . 3 1 1 . Terminals 6 | . 2 . . . 3 . 1 . Fabricators 1 | . . . . . . 1 . . Repair Stations . | . . . . . . . . . Recycling Units . | . . . . . . . . . Scanalyzers . | . . . . . . . . . Garrison Access . | . . . . . . . . . Total Hacks 19 | . 9 . . . 5 2 3 . Successful 14 | . 7 . . . 5 1 1 . Failed 5 | . 2 . . . . 1 2 . Catastrophic . | . . . . . . . . . Database Lockouts . | . . . . . . . . . Manual . | . . . . . . . . . Terminals 17 | . 9 . . . 5 . 3 . Fabricators 2 | . . . . . . 2 . . Repair Stations . | . . . . . . . . . Recycling Units . | . . . . . . . . . Scanalyzers . | . . . . . . . . . Garrison Access . | . . . . . . . . . Terminal Hacks 13 | . 7 . . . 5 . 1 . Record 3 | . 3 . . . . . . . Open Door 2 | . . . . . 2 . . . Open DSF 1 | . . . . . . . 1 . Alert Level 1 | . 1 . . . . . . . Locate Traps 2 | . 1 . . . 1 . . . Disarm Traps 1 | . . . . . 1 . . . Dispatch Records 1 | . . . . . 1 . . . Hauler Manifests 1 | . 1 . . . . . . . Zone Layout 1 | . 1 . . . . . . . Fabricator Hacks 1 | . . . . . . 1 . . Network Status 1 | . . . . . . 1 . . Repair Station Hacks . | . . . . . . . . . Recycling Unit Hacks . | . . . . . . . . . Scanalyzer . | . . . . . . . . . Garrison Access Hacks . | . . . . . . . . . Unauthorized Hacks . | . . . . . . . . . Terminals . | . . . . . . . . . Fabricators . | . . . . . . . . . Repair Stations . | . . . . . . . . . Recycling Units . | . . . . . . . . . Scanalyzers . | . . . . . . . . . Garrison Access . | . . . . . . . . . Data Cores Recovered . | . . . . . . . . . Used . | . . . . . . . . . Hacking Detections 4 | . 1 . . . 1 1 1 . Full Trace Events 1 | . 1 . . . . . . . Feedback Events . | . . . . . . . . . Feedback Blocked . | . . . . . . . . . Robot Schematics Acquired . | . . . . . . . . . Robots Built . | . . . . . . . . . Authchips . | . . . . . . . . . Time . | . . . . . . . . . Total Robot Build Rating . | . . . . . . . . . Part Schematics Acquired . | . . . . . . . . . Parts Built . | . . . . . . . . . Authchips . | . . . . . . . . . Time . | . . . . . . . . . Total Part Build Rating . | . . . . . . . . . Parts Repaired . | . . . . . . . . . Time . | . . . . . . . . . Parts Recycled . | . . . . . . . . . Recycled Matter . | . . . . . . . . . Retrieved Matter . | . . . . . . . . . Retrieved Components . | . . . . . . . . . Parts Scanalyzed . | . . . . . . . . . Part Schematics Acquired . | . . . . . . . . . Parts Damaged . | . . . . . . . . . Bothacking | -11 -10 -10 -9 -8 -8 -7 -6 -6 ------------ Run | Yrd Mat Min Mat Mat Sto Fac Fac DSF Used RIF Installer . | . . . . . . . . . Robots Hacked . | . . . . . . . . . Non-combat . | . . . . . . . . . Combat . | . . . . . . . . . Robot Hacks Applied . | . . . . . . . . . Relay Couplers Released . | . . . . . . . . . Fabnet Peak Effective % . | . . . . . . . . . Robots Rewired . | . . . . . . . . . Allies Hacked . | . . . . . . . . . Hacks Repelled . | . . . . . . . . . Allies | -11 -10 -10 -9 -8 -8 -7 -6 -6 -------- Run | Yrd Mat Min Mat Mat Sto Fac Fac DSF Total Allies . | . . . . . . . . . Largest Group . | . . . . . . . . . Highest-Rated Group . | . . . . . . . . . Highest-Rated Ally . | . . . . . . . . . Total Orders . | . . . . . . . . . Ally Attacks . | . . . . . . . . . Total Damage . | . . . . . . . . . Kills . | . . . . . . . . . Allies Corrupted . | . . . . . . . . . Allies Melted . | . . . . . . . . . Intel | -11 -10 -10 -9 -8 -8 -7 -6 -6 ------- Run | Yrd Mat Min Mat Mat Sto Fac Fac DSF Robot Analysis Total . | . . . . . . . . . Derelict Logs Recovered . | . . . . . . . . . Drone Launches 5 | . . . . . 4 1 . . Drone Recoveries 1 | . . . . . 1 . . . Exploration | -11 -10 -10 -9 -8 -8 -7 -6 -6 ------------- Run | Yrd Mat Min Mat Mat Sto Fac Fac DSF Turns Passed 4241 | 73 1782 427 353 13 994 360 10 229 Spaces Moved 1844 | 42 870 256 153 6 324 135 5 53 Core 19 | 10 4 . 3 . . . . 2 Treads 1487 | 32 866 21 59 6 324 135 5 39 Legs . | . . . . . . . . . Wheels 336 | . . 235 91 . . . . 10 Hover 2 | . . . . . . . . 2 Flight . | . . . . . . . . . Fastest Speed 50 | 50 100 110 110 240 240 240 240 125 Average Speed 194 | 133 184 120 177 240 262 240 240 256 Slowest Speed 800 | 160 240 240 800 240 400 240 240 750 Overloaded Moves . | . . . . . . . . . Propulsion Burnouts . | . . . . . . . . . Robots Hopped . | . . . . . . . . . Cave-ins Triggered . | . . . . . . . . . Exploration Rate (%) 31 | 4 99 31 25 2 45 6 1 67 Regions Visited 8 Branch Regions 2 Pre-discovered Areas . | . . . . . . . . . Known Exits Taken 3 | . 1 1 . . . . 1 . Unknown Exits Taken 5 | 1 . . 1 1 1 1 . . Scrap Searched . | . . . . . . . . . Spaces Dug . | . . . . . . . . . Terrain Destroyed 306 | . . 119 113 . 7 . . 67 Melee . | . . . . . . . . . Projectile 3 | . . . 1 . 2 . . . AOE 303 | . . 119 112 . 5 . . 67 Terrain Rammed . | . . . . . . . . . Walls Destroyed . | . . . . . . . . . Machines Disabled . | . . . . . . . . . Actions | -11 -10 -10 -9 -8 -8 -7 -6 -6 --------- Run | Yrd Mat Min Mat Mat Sto Fac Fac DSF Total 2205 | 59 981 318 200 6 381 155 4 101 Wait 57 | . 47 1 . . 1 . . 8 Move 1836 | 41 869 255 152 5 323 134 4 53 Hop . | . . . . . . . . . Pick Up 62 | 12 13 7 7 . 13 5 . 5 Fast Attach 7 | . 6 . . . . 1 . . Attach 41 | 6 3 6 10 1 4 1 . 10 Detach 1 | . . . 1 . . . . . Swap 23 | . 3 6 7 . 4 1 . 2 Drop 8 | . 1 1 . . 2 4 . . Fire 162 | . 39 40 23 . 33 9 . 18 Melee 5 | . . . . . . . . 5 Ram 2 | . . 2 . . . . . . Kick . | . . . . . . . . . Crush 1 | . . . . . 1 . . . Escape Stasis . | . . . . . . . . . Rewire . | . . . . . . . . . Trap . | . . . . . . . . . Miscellaneous . | . . . . . . . . . Route ------- -11/Scrapyard -10/Materials (discovered 5 exits: *Mat x3 / *Min x2) -10/Mines -9/Materials -8/Materials -8/Storage -7/Factory -6/Factory -6/DSF History --------- Turn | Location | Event 33 | -11/Scrapyard | Discovered new exit (range 15) 74 | -11/Scrapyard | Entered Materials 311 | -10/Materials | Build established: Mutant 386 | -10/Materials | Discovered new exit (range 8) 485 | -10/Materials | Identified exit to Materials 631 | -10/Materials | Lost 3 parts (1p1n1w) 661 | -10/Materials | Discovered exit to Materials (range 10) 704 | -10/Materials | Discovered new exit (range 12) 720 | -10/Materials | Identified exit to Mines 979 | -10/Materials | Discovered exit to Mines (range 12) 1177 | -10/Materials | Discovered exit to Materials (range 15) 1856 | -10/Materials | Entered Mines 1857 | -10/Mines | Assembled infested the area 1863 | -10/Mines | Received a Rocket Launcher from a helpful Derelict 1947 | -10/Mines | Core integrity fell below 50% 1985 | -10/Mines | Destroyed 14 combat bots 2106 | -10/Mines | Discovered exit to Materials (range 8) 2283 | -10/Mines | Entered Materials 2283 | -9/Materials | Evolved 2 slots: Utility x2 2426 | -9/Materials | Destroyed 7 combat bots 2431 | -9/Materials | Lost 4 parts (1p1n1u1w) 2551 | -9/Materials | Lost 3 parts (2n1u) 2614 | -9/Materials | Discovered new exit (range 9) 2636 | -9/Materials | Entered another Materials area 2636 | -8/Materials | Evolved 2 slots: Weapon x2 2637 | -8/Materials | Discovered new exit (range 5) 2649 | -8/Materials | Entered Storage 3184 | -8/Storage | Build established: Gunner 3575 | -8/Storage | Discovered new exit (range 16) 3643 | -8/Storage | Entered Factory 3643 | -7/Factory | Accompanied by 1 ally 3643 | -7/Factory | Evolved 2 slots: Propulsion x2 3986 | -7/Factory | Discovered new exit (range 8) 4003 | -7/Factory | Entered another Factory area 4003 | -6/Factory | Accompanied by 2 allies 4003 | -6/Factory | Evolved 2 slots: Propulsion x2 4013 | -6/Factory | Identified exit to DSF 4013 | -6/Factory | Entered DSF 4013 | -6/DSF | Accompanied by 2 allies 4069 | -6/DSF | Additional patrols routed to DSF 4137 | -6/DSF | Wild Derelicts raided the area 4156 | -6/DSF | Lost 7 parts (1p4n2u) 4218 | -6/DSF | Core integrity fell below 50% 4234 | -6/DSF | Core integrity fell below 20% 4242 | -6/DSF | Destroyed by V7-7QP(b) with Great Maul Last Messages --------------- Katana destroyed. Acquired Gravmag Array. The unstable cave ceiling collapses. V7-7QP(b) suffers critical hit (Burn). Acquired Gravmag Array. Gravmag Array destroyed. Acquired 5 matter. Critical hit (Burn: +37). V7-7QP(b) suffers critical hit (Smash). The unstable cave ceiling collapses. Knocked back. Acquired Gravmag Array. Critical hit (Burn: +37). Gravmag Array destroyed. 61-ZD5(g) knocked back. Critical hit (Burn: +37). Targeting Computer destroyed. System corrupted by crushing effect (+5). Gravmag Array destroyed. [Achievement: 5k Club] Map ----- +----------------------------------------------------+ | | | | | | | | | | | | | | | | | | | | | | | ???????????????????????????????????????????????? | | ???????????????????????????????????????????????? | | ???????????????????????????????????????????????? | | ???????????????????????????????????????????????? | | ???????????????????????????????????????????????? | | ???????????????????????????????????????????????? | | ??????????????????#######??????????????????????? | | ???????????##?##### ??????????????????????? | | ???????????#!!#!!!# ??????????????????????? | | ?????????? ^ ??????????????????????? | | ??????????? ??????????????????????? | | ???????????? ! # ##?????????????????????? | | ??????????????# # ##????????????????????? | | ??????????????# # g %==#????????????????????? | | ??????????????## # g %=@#????????????????????? | | ??????????????# g b ####?????????????????? | | ??????????????# # |g ! ?????????????????? | | ???????????????# %! %[ ##????????????????? | | ???????????????## = = ###?????????????????? | | ????????????????# # * # #??????????????????? | | ??????????#???#### #M/ ####??#?????????????? | | ?????? ?# ?#!! # # [[[#? #????????????? | | ?????? ## #!!!##A % #[[[# ## ??????????? | | ?????!! * ????????? | | ??????! ????????? | | ??????! ????????? | | ??????! ##///#]]]# A A #!!!# ^## ?????????? | | ??????! ##//?#]]]# #!!!# #????????????? | | ?????## #?#??###?## %!#######?###????????????? | | ?????#[ ]????????#!! ! [[#????????????????????? | | ??????[ ]????????#!! [[#????????????????????? | | ??????[ ]????????#!! [[#????????????????????? | | ?????## ##???????##" ###????????????????????? | | ?????#] [????????#!! !!#????????????????????? | | ?????#] [????????#!! !!#????????????????????? | | ??????# #?########!! !!#????????????????????? | | ????### =### #]]]#"" ###???#????????????????? | | ?####"" ! ## #]]]### ###!!!# #?????????????? | | ?#""""" ! % % "????????? | +----------------------------------------------------+ Best States ------------- Heat Dissipation 37 Energy Generation 14 Energy Capacity 280 Matter Stores 300 Matter Capacity 300 Sight Range 16 Terrain Scan Density 10 Armor Coverage 300 Power Shielding 33 Evasion (%) 50 Targeting Accuracy 5 Recoil Reduction 3 Item Schematics ----------------- None Robot Schematics ------------------ None Fabricated ------------ Nothing Alien Tech Used ----------------- None Achievements -------------- 5k Club Exterminator Shopping List Challenges ------------ None Game ------ Seed NetworkDynamicLeg Manual? 0 Play Time 00:42:54 Cumulative 9.7 hours Start 2024.04.07 @ 13:36:41 End 2024.04.07 @ 14:21:10 Sessions 1 Manual Loads 0 Difficulty Rogue Special Mode None Game No. 31 Rogue 31 Adventurer 0 Explorer 0 Win Type - Total 0 Types 0/0/0/0/0/0/0/0/0 Lore% 13 Gallery% 11 Achievement% 12 Wizard Run 0 Options --------- Layout 1 ASCII 0 Keyboard 0 Movement Mouse Keybinds 0 Fullscreen 2 Font 24/Proggy Map View 50x35 Zoom Use 0% Tactical HUD 0 Map Filters NONE Filters NONE Steam 1 RUN: 32486fbb-be2f-40f6-8c3f-3efe97fcd3b0